fUSD/lending_fUSD_20260218
["ID","MTS","AMOUNT","RATE_DAILY","PERIOD"]
[405941489,1771431048879,-35075.20461767,0.00018,2]
[405941490,1771431048891,-680.0,0.00018,2]
[405941491,1771431048911,-16520.87763197,0.00018,2]
[405941492,1771431048929,-398.48000002,0.00018,2]
[405941493,1771431048959,-8944.29809816,0.000179,2]
[405941494,1771431048973,-1346.0,0.000179,2]
[405941495,1771431048985,-1485.17499987,0.000179,2]
[405941496,1771431048999,-1688.025,0.000179,2]
[405941497,1771431049014,-11114.71890242,0.000179,2]
[405941498,1771431049028,-676.87939562,0.000179,2]
[405941499,1771431049040,-56933.13379952,0.000179,2]
[405941500,1771431049051,-17339.8617612,0.00018,2]
[405941501,1771431049064,-1995.00000002,0.00018,2]
[405941503,1771431677146,150.0,6.53e-05,2]
[405941516,1771432231348,-300.0,6.566e-05,2]
[405941517,1771432231358,-1200.0,6.566e-05,2]
[405941518,1771432231367,-150.0,6.566e-05,2]
[405941520,1771432231377,-3051.61976,6.567e-05,2]
[405941523,1771432231388,-658.19883048,6.567e-05,2]
[405941526,1771432231400,-2004.84629441,6.567e-05,2]
[405941528,1771432231411,-601.15370559,6.567e-05,2]
[405941531,1771432231422,-589.11335664,6.567e-05,2]
[405941532,1771432231440,-588.97499999,6.567e-05,2]
[405941533,1771432231451,-16601.95461935,6.567e-05,2]
[405941534,1771432231462,-1205.79627524,6.567e-05,2]
[405941535,1771432231473,-1337.70986208,6.567e-05,2]
[405941536,1771432231484,-1257.02204758,6.567e-05,2]
[405941537,1771432231495,-43254.51972443,6.567e-05,2]
[405941538,1771432231506,-2829.38552005,6.567e-05,2]
[405941539,1771432231517,-298.1025574,6.567e-05,2]
[405941540,1771432231528,-620.42829203,6.567e-05,2]
[405941541,1771432231538,-1052.16948953,6.567e-05,2]
[405941558,1771432237440,-1072.40294018,6.567e-05,2]
[405941559,1771432237598,-90434.61328331,6.567e-05,2]
[405941560,1771432237610,-43365.52479825,6.567e-05,2]
[405941561,1771432237655,-85048.198,6.567e-05,2]
[405941562,1771432237727,-1003.83619026,6.567e-05,2]
[405941563,1771432237740,-718.505,6.567e-05,2]
[405941564,1771432237754,-477.01024154,6.567e-05,2]
[405941565,1771432237777,-11079.92670584,6.567e-05,2]
[405941566,1771432237789,-1741.48362425,6.567e-05,2]
[405941575,1771432239536,-300.0,6.566e-05,2]
[405941576,1771432239547,-6571.12991146,6.567e-05,2]
[405941577,1771432239560,-1269.9727187,6.567e-05,2]
[405941578,1771432239626,-107.93447505,6.567e-05,2]
[405941579,1771432239638,-5468.87001003,6.567e-05,2]
[405941580,1771432239651,-372.34049029,6.567e-05,2]
[405941581,1771432239663,-1256.38003316,6.567e-05,2]
[405941582,1771432239676,-578.57177331,6.567e-05,2]
[405941583,1771432239807,-624.97727167,6.567e-05,2]
[405941584,1771432239879,-59753.23113908,6.567e-05,2]
[405941585,1771432239891,-310.16807221,6.567e-05,2]
[405941586,1771432239904,-574.5842893,6.567e-05,2]
[405941587,1771432239949,-6930.92880692,6.567e-05,2]
[405941588,1771432239964,-655.60542929,6.567e-05,2]
[405941589,1771432239976,-3104632.8094611,6.567e-05,2]
[405941590,1771432239986,-150.0,6.64e-05,2]
[405941591,1771432239996,-2245.76153975,6.64e-05,2]
[405941592,1771432240006,-170.40667766,6.64e-05,2]
[405941593,1771432240016,-250.0,6.652e-05,2]
[405941595,1771432240025,-1849.353,6.663e-05,2]
[405941597,1771432240035,-163.631,6.663e-05,2]
[405941599,1771432240044,-250.0,6.663e-05,2]
[405941601,1771432240053,-500.0,6.666e-05,2]
[405941602,1771432240063,-500.0,6.666e-05,2]
[405941603,1771432240072,-500.0,6.666e-05,2]
[405941604,1771432240082,-500.0,6.666e-05,2]
[405941605,1771432240092,-500.0,6.666e-05,2]
[405941606,1771432240102,-500.0,6.666e-05,2]
[405941607,1771432240111,-500.0,6.666e-05,2]
[405941608,1771432240120,-500.0,6.666e-05,2]
[405941609,1771432240130,-500.0,6.666e-05,2]
[405941610,1771432240139,-488.53905217,6.666e-05,2]
[405941611,1771432240148,-500.0,6.666e-05,2]
[405941612,1771432240157,-500.0,6.666e-05,2]
[405941613,1771432240166,-500.0,6.666e-05,2]
[405941614,1771432240176,-500.0,6.666e-05,2]
[405941615,1771432240189,-500.0,6.666e-05,2]
[405941616,1771432240198,-500.0,6.666e-05,2]
[405941618,1771432240207,-1100.0,6.7e-05,2]
[405941620,1771432240216,-38310.0,6.767e-05,2]
[405941622,1771432240226,-6212.8,6.772e-05,2]
[405941624,1771432240235,-999.99,6.772e-05,2]
[405941626,1771432240244,-150.99,6.798e-05,2]
[405941627,1771432240455,-9999.99,6.798e-05,2]
[405941628,1771432240468,-5298.58,6.799e-05,2]
[405941629,1771432240478,-9999.99,6.799e-05,2]
[405941630,1771432240489,-2200.0,6.8e-05,2]
[405941631,1771432240498,-3400.0,6.9e-05,2]
[405941632,1771432240507,-4500.0,7e-05,2]
[405941633,1771432240517,-1680.0,7.223e-05,2]
[405941634,1771432240526,-420.0,7.223e-05,2]
[405941635,1771432240535,-255.0,7.223e-05,2]
[405941636,1771432240544,-420.0,7.223e-05,2]
[405941637,1771432240554,-250.0,7.304e-05,2]
[405941638,1771432240563,-1500.0,7.697e-05,2]
[405941639,1771432240573,-613.66,7.857e-05,2]
[405941640,1771432240583,-5732.22,7.881e-05,2]
[405941641,1771432240594,-587.0,7.945e-05,2]
[405941642,1771432240603,-2351.0,7.945e-05,2]
[405941643,1771432240612,-433.0,7.945e-05,2]
[405941644,1771432240622,-3416.28,8.12e-05,2]
[405941645,1771432240631,-20031.798547,8.178e-05,2]
[405941646,1771432240640,-16768.55,8.219e-05,2]
[405941647,1771432240649,-168.63570163,8.367e-05,2]
[405941648,1771432240658,-245.86778969,8.367e-05,2]
[405941649,1771432240667,-307.32831336,8.367e-05,2]
[405941650,1771432240676,-500.0,8.367e-05,2]
[405941651,1771432240685,-500.0,8.367e-05,2]
[405941652,1771432240694,-500.0,8.367e-05,2]
[405941653,1771432240703,-503.24422827,8.367e-05,2]
[405941654,1771432240712,-500.0,8.367e-05,2]
[405941655,1771432240721,-165.19851393,8.367e-05,2]
[405941656,1771432240730,-500.0,8.367e-05,2]
[405941657,1771432240739,-500.0,8.367e-05,2]
[405941658,1771432240748,-200.41863357,8.367e-05,2]
[405941659,1771432240757,-500.0,8.367e-05,2]
[405941660,1771432240766,-500.0,8.367e-05,2]
[405941661,1771432240775,-500.0,8.367e-05,2]
[405941662,1771432240785,-500.0,8.367e-05,2]
[405941663,1771432240794,-500.0,8.367e-05,2]
[405941664,1771432240803,-500.0,8.367e-05,2]
[405941665,1771432240812,-164.39891665,8.367e-05,2]
[405941666,1771432240821,-306.32454784,8.367e-05,2]
[405941667,1771432240831,-263.72762291,8.367e-05,2]
[405941668,1771432240840,-500.0,8.367e-05,2]
[405941669,1771432240850,-500.0,8.367e-05,2]
[405941670,1771432240860,-500.87268816,8.367e-05,2]
[405941671,1771432240869,-250.0,8.676e-05,2]
[405941672,1771432240879,-823.0,8.74e-05,2]
[405941673,1771432240888,-3292.0,8.74e-05,2]
[405941674,1771432240897,-736.0,8.74e-05,2]
[405941675,1771432240907,-1000.0,8.915e-05,2]
[405941676,1771432240916,-1000.0,8.915e-05,2]
[405941677,1771432240925,-1000.0,8.915e-05,2]
[405941678,1771432240935,-1000.0,8.915e-05,2]
[405941679,1771432240944,-1000.0,8.915e-05,2]
[405941680,1771432240953,-341.49183462,8.915e-05,2]
[405941681,1771432240963,-1000.0,8.915e-05,2]
[405941682,1771432240972,-1000.0,8.915e-05,2]
[405941683,1771432240982,-1500.0,9.463e-05,2]
[405941684,1771432240992,-1500.0,9.463e-05,2]
[405941685,1771432241001,-512.75173509,9.463e-05,2]
[405941686,1771432241011,-1509.709324,9.463e-05,2]
[405941687,1771432241020,-1500.0,9.463e-05,2]
[405941688,1771432241029,-1500.0,9.463e-05,2]
[405941689,1771432241038,-1152.0,9.613e-05,2]
[405941690,1771432241047,-883.0,9.613e-05,2]
[405941691,1771432241056,-457.0,9.613e-05,2]
[405941692,1771432241065,-1719.89929449,0.0001,2]
[405941693,1771432241074,-170.44202008,0.0001,2]
[405941694,1771432241084,-417.0,0.0001,2]
[405941695,1771432241093,-151.0,0.0001,2]
[405941696,1771432241102,-151.0,0.0001,2]
[405941697,1771432241111,-151.0,0.0001,2]
[405941698,1771432241120,-151.0,0.0001,2]
[405941699,1771432241129,-151.0,0.0001,2]
[405941700,1771432241137,-151.0,0.0001,2]
[405941701,1771432241146,-151.0,0.0001,2]
[405941702,1771432241155,-151.0,0.0001,2]
[405941703,1771432241165,-151.0,0.0001,2]
[405941704,1771432241175,-151.0,0.0001,2]
[405941705,1771432241187,-151.0,0.0001,2]
[405941706,1771432241196,-151.0,0.0001,2]
[405941707,1771432241205,-151.0,0.0001,2]
[405941708,1771432241215,-151.0,0.0001,2]
[405941709,1771432241224,-151.0,0.0001,2]
[405941710,1771432241233,-151.0,0.0001,2]
[405941711,1771432241242,-151.0,0.0001,2]
[405941712,1771432241252,-151.0,0.0001,2]
[405941713,1771432241262,-151.0,0.0001,2]
[405941714,1771432241270,-151.0,0.0001,2]
[405941715,1771432241279,-285.65412832,0.0001,2]
[405941716,1771432241288,-995.11978986,0.0001,2]
[405941717,1771432241297,-1447.46038835,0.0001,2]
[405941718,1771432241306,-1447.46038835,0.0001,2]
[405941719,1771432241316,-1865.39566179,0.00010011,2]
[405941720,1771432241325,-2000.0,0.00010011,2]
[405941721,1771432241334,-2000.0,0.00010011,2]
[405941722,1771432241344,-1460.671579,0.00010011,2]
[405941723,1771432241353,-21954.59510396,0.00010296,2]
[405941724,1771432241363,-2500.0,0.00010559,2]
[405941725,1771432241372,-1341.95678593,0.00010559,2]
[405941726,1771432241382,-1768.618182,0.00010606,2]
[405941727,1771432241391,-269.09940998,0.000107,2]
[405941728,1771432241401,-1030.93366702,0.000108,2]
[405941729,1771432241410,-5700.0,0.000109,3]
[405941730,1771432241419,-14906.89,0.00010959,2]
[405941731,1771432241428,-383.91,0.00010974,2]
[405941732,1771432241438,-9452.37121348,0.00011,2]
[405941733,1771432241447,-47536.88696197,0.00011099,2]
[405941734,1771432241456,-47536.88696193,0.00011099,2]
[405941735,1771432241465,-47536.88696193,0.00011099,2]
[405941736,1771432241475,-47536.88696193,0.00011099,2]
[405941737,1771432241484,-3000.0,0.00011107,2]
[405941738,1771432241493,-47536.88696193,0.0001161,2]
[405941739,1771432241503,-508.25195844,0.00011655,2]
[405941740,1771432241512,-183.47,0.00011832,2]
[405941741,1771432241521,-203245.0,0.000121,2]
[405941742,1771432241531,-160.0,0.0001215,2]
[405941743,1771432241540,-173.62051493,0.0001215,2]
[405941744,1771432241549,-2245.76153974,0.0001222,2]
[405941745,1771432241559,-285.65412831,0.00012241,2]
[405941746,1771432241567,-308.43277492,0.000125,2]
[405941747,1771432241576,-5531.0,0.000125,3]
[405941748,1771432241585,-47536.88696193,0.00012867,2]
[405941749,1771432241594,-116449.46912322,0.000129,2]
[405941750,1771432241607,-5531.0,0.000129,5]
[405941751,1771432241615,-17272.46,0.00012902,2]
[405941752,1771432241624,-5623.94740036,0.00013,2]
[405941753,1771432241633,-761.97,0.00013,2]
[405941754,1771432241642,-7993.76060363,0.00013,15]
[405941755,1771432241651,-500.0,0.00013,2]
[405941756,1771432241659,-500.0,0.00013,2]
[405941757,1771432241668,-500.0,0.00013,2]
[405941758,1771432241677,-500.0,0.00013,2]
[405941759,1771432241686,-500.0,0.00013,2]
[405941760,1771432241695,-500.0,0.00013,2]
[405941761,1771432241704,-900.0,0.00013,2]
[405941762,1771432241714,-500.0,0.00013,2]
[405941763,1771432241723,-500.0,0.00013,2]
[405941764,1771432241732,-600.0,0.00013,2]
[405941765,1771432241741,-500.0,0.00013,2]
[405941766,1771432241749,-600.0,0.00013,2]
[405941767,1771432241758,-500.0,0.00013,2]
[405941768,1771432241767,-600.0,0.00013,2]
[405941769,1771432241777,-500.0,0.00013,2]
[405941770,1771432241786,-600.0,0.00013,2]
[405941771,1771432241795,-500.0,0.00013,2]
[405941772,1771432241804,-600.0,0.00013,2]
[405941773,1771432241814,-500.0,0.00013,2]
[405941774,1771432241822,-500.0,0.00013,2]
[405941775,1771432241832,-600.0,0.00013,2]
[405941776,1771432241841,-500.0,0.00013,2]
[405941777,1771432241851,-600.0,0.00013,2]
[405941778,1771432241860,-500.0,0.00013,2]
[405941779,1771432241870,-600.0,0.00013,2]
[405941780,1771432241879,-647.40453028,0.00013,2]
[405941781,1771432241889,-600.0,0.00013,2]
[405941782,1771432241898,-600.0,0.00013,2]
[405941783,1771432241907,-600.0,0.00013,2]
[405941784,1771432241917,-600.0,0.00013,2]
[405941785,1771432241927,-1000.0,0.00013,2]
[405941786,1771432241936,-500.0,0.00013,2]
[405941787,1771432241945,-500.0,0.00013,2]
[405941788,1771432241955,-761.97,0.00013274,2]
[405941789,1771432241964,-761.97,0.00013548,2]
[405941790,1771432241973,-500.0,0.00013698,2]
[405941791,1771432241983,-500.0,0.00013698,2]
[405941792,1771432241992,-500.0,0.00013698,2]
[405941793,1771432242001,-500.0,0.00013698,2]
[405941794,1771432242010,-500.0,0.00013698,2]
[405941795,1771432242019,-500.0,0.00013698,2]
[405941796,1771432242028,-500.0,0.00013698,2]
[405941797,1771432242037,-500.0,0.00013698,2]
[405941798,1771432242047,-500.0,0.00013698,2]
[405941799,1771432242055,-500.0,0.00013698,2]
[405941800,1771432242064,-500.0,0.00013698,2]
[405941801,1771432242073,-500.0,0.00013698,2]
[405941802,1771432242082,-500.0,0.00013698,2]
[405941803,1771432242092,-500.0,0.00013698,2]
[405941804,1771432242101,-500.0,0.00013698,2]
[405941805,1771432242112,-500.0,0.00013698,2]
[405941806,1771432242122,-500.0,0.00013698,2]
[405941807,1771432242131,-500.0,0.00013698,2]
[405941808,1771432242140,-500.0,0.00013698,2]
[405941809,1771432242150,-500.0,0.00013698,2]
[405941810,1771432242160,-500.0,0.00013698,2]
[405941811,1771432242171,-500.0,0.00013698,2]
[405941812,1771432242182,-500.0,0.00013698,2]
[405941813,1771432242192,-500.0,0.00013698,2]
[405941814,1771432242202,-500.0,0.00013698,2]
[405941815,1771432242213,-500.0,0.00013698,2]
[405941816,1771432242223,-500.0,0.00013698,2]
[405941817,1771432242233,-500.0,0.00013698,2]
[405941818,1771432242243,-500.0,0.00013698,2]
[405941819,1771432242254,-500.0,0.00013698,2]
[405941822,1771432242263,-500.0,0.00013698,2]
[405941824,1771432242274,-500.0,0.00013698,2]
[405941826,1771432242283,-500.0,0.00013698,2]
[405941828,1771432242292,-500.0,0.00013698,2]
[405941830,1771432242301,-500.0,0.00013698,2]
[405941832,1771432242310,-500.0,0.00013698,2]
[405941834,1771432242320,-500.0,0.00013698,2]
[405941835,1771432242330,-500.0,0.00013698,2]
[405941836,1771432242340,-500.0,0.00013698,2]
[405941837,1771432242350,-207.45341445,0.00013698,2]
[405941838,1771432242360,-500.0,0.00013698,2]
[405941839,1771432242371,-500.0,0.00013698,2]
[405941840,1771432242380,-500.0,0.00013698,2]
[405941841,1771432242390,-500.0,0.00013698,2]
[405941842,1771432242399,-500.0,0.00013698,2]
[405941843,1771432242407,-500.0,0.00013698,2]
[405941844,1771432242417,-500.0,0.00013698,2]
[405941845,1771432242426,-500.0,0.00013698,2]
[405941846,1771432242435,-500.0,0.00013698,2]
[405941847,1771432242444,-500.0,0.00013698,2]
[405941848,1771432242453,-500.0,0.00013698,2]
[405941849,1771432242462,-500.0,0.00013698,2]
[405941850,1771432242471,-500.0,0.00013698,2]
[405941851,1771432242480,-500.0,0.00013698,2]
[405941852,1771432242489,-500.0,0.00013698,2]
[405941853,1771432242499,-500.0,0.00013698,2]
[405941854,1771432242508,-500.0,0.00013698,2]
[405941855,1771432242517,-500.0,0.00013698,2]
[405941856,1771432242526,-500.0,0.00013698,2]
[405941857,1771432242534,-500.0,0.00013698,2]
[405941858,1771432242543,-500.0,0.00013698,2]
[405941859,1771432242552,-500.0,0.00013698,2]
[405941860,1771432242569,-500.0,0.00013698,2]
[405941861,1771432242580,-500.0,0.00013698,2]
[405941862,1771432242589,-500.0,0.00013698,2]
[405941863,1771432242598,-500.0,0.00013698,2]
[405941864,1771432242607,-500.0,0.00013698,2]
[405941865,1771432242616,-500.0,0.00013698,2]
[405941866,1771432242626,-500.0,0.00013698,2]
[405941867,1771432242635,-500.0,0.00013698,2]
[405941868,1771432242645,-500.0,0.00013698,2]
[405941869,1771432242654,-500.0,0.00013698,2]
[405941870,1771432242663,-500.0,0.00013698,2]
[405941871,1771432242672,-500.0,0.00013698,2]
[405941872,1771432242681,-650.14,0.00013698,2]
[405941873,1771432242690,-650.14,0.00013698,2]
[405941874,1771432242699,-650.14,0.00013698,2]
[405941875,1771432242709,-650.14,0.00013698,2]
[405941876,1771432242719,-650.14,0.00013698,2]
[405941877,1771432242729,-650.14,0.00013698,2]
[405941878,1771432242739,-650.14,0.00013698,2]
[405941879,1771432242749,-650.14,0.00013698,2]
[405941880,1771432242759,-650.14,0.00013698,2]
[405941881,1771432242771,-650.14,0.00013698,2]
[405941882,1771432242781,-650.14,0.00013698,2]
[405941883,1771432242790,-650.14,0.00013698,2]
[405941884,1771432242800,-650.14,0.00013698,2]
[405941885,1771432242809,-650.14,0.00013698,2]
[405941886,1771432242819,-650.14,0.00013698,2]
[405941887,1771432242828,-650.14,0.00013698,2]
[405941888,1771432242838,-650.14,0.00013698,2]
[405941889,1771432242848,-650.14,0.00013698,2]
[405941890,1771432242858,-500.0,0.00013698,2]
[405941891,1771432242869,-500.0,0.00013698,2]
[405941892,1771432242881,-500.0,0.00013698,2]
[405941893,1771432242891,-500.0,0.00013698,2]
[405941894,1771432242901,-500.0,0.00013698,2]
[405941895,1771432242911,-500.0,0.00013698,2]
[405941896,1771432242920,-500.0,0.00013698,2]
[405941897,1771432242929,-500.0,0.00013698,2]
[405941898,1771432242939,-500.0,0.00013698,2]
[405941899,1771432242948,-500.0,0.00013698,2]
[405941900,1771432242957,-500.0,0.00013698,2]
[405941901,1771432242967,-500.0,0.00013698,2]
[405941902,1771432242976,-551.5455423,0.00013698,2]
[405941903,1771432242985,-1223.27,0.00013698,2]
[405941904,1771432242995,-1223.27,0.00013698,2]
[405941905,1771432243004,-1223.27,0.00013698,2]
[405941906,1771432243013,-1223.27,0.00013698,2]
[405941907,1771432243023,-1223.27,0.00013698,2]
[405941908,1771432243032,-1223.27,0.00013698,2]
[405941909,1771432243041,-1223.27,0.00013698,2]
[405941910,1771432243051,-1223.27,0.00013698,2]
[405941911,1771432243060,-1223.27,0.00013698,2]
[405941912,1771432243069,-1223.27,0.00013698,2]
[405941913,1771432243079,-1223.27,0.00013698,2]
[405941914,1771432243088,-1223.27,0.00013698,2]
[405941915,1771432243097,-1223.27,0.00013698,2]
[405941916,1771432243106,-1223.27,0.00013698,2]
[405941917,1771432243115,-1223.27,0.00013698,2]
[405941918,1771432243129,-1223.27,0.00013698,2]
[405941919,1771432243138,-1223.27,0.00013698,2]
[405941920,1771432243147,-1223.27,0.00013698,2]
[405941921,1771432243156,-500.0,0.00013698,2]
[405941922,1771432243166,-500.0,0.00013698,2]
[405941923,1771432243179,-500.0,0.00013698,2]
[405941924,1771432243188,-196.13541993,0.00013698,2]
[405941925,1771432243197,-500.0,0.00013698,2]
[405941926,1771432243207,-500.0,0.00013698,2]
[405941927,1771432243217,-500.0,0.00013698,2]
[405941929,1771432243227,-173.07181477,0.00013698,2]
[405941930,1771432243237,-500.0,0.00013698,2]
[405941932,1771432243247,-500.0,0.00013698,2]
[405941933,1771432243259,-500.0,0.00013698,2]
[405941934,1771432243268,-500.0,0.00013698,2]
[405941935,1771432243277,-500.0,0.00013698,2]
[405941936,1771432243287,-639.8454937,0.00013698,2]
[405941937,1771432243295,-341.61,0.00013699,2]
[405941938,1771432243305,-618.68,0.000137,2]
[405941939,1771432243315,-618.68,0.000137,2]
[405941940,1771432243324,-618.68,0.000137,2]
[405941941,1771432243334,-618.68,0.000137,2]
[405941942,1771432243343,-618.68,0.000137,2]
[405941943,1771432243352,-22025.34,0.000137,2]
[405941944,1771432243362,-22025.34,0.000137,2]
[405941945,1771432243371,-293.08527688,0.00013727,2]
[405941946,1771432243387,-500.0,0.00013727,2]
[405941947,1771432243396,-500.0,0.00013727,2]
[405941948,1771432243406,-500.0,0.00013727,2]
[405941950,1771432243415,-500.0,0.00013727,2]
[405941953,1771432243425,-500.0,0.00013727,2]
[405941955,1771432243435,-163.91978411,0.00013727,2]
[405941957,1771432243445,-162.00011726,0.00013727,2]
[405941958,1771432243454,-501.41908298,0.00013727,2]
[405941959,1771432243463,-500.0,0.00013727,2]
[405941960,1771432243472,-500.61236308,0.00013727,2]
[405941961,1771432243483,-162.44090576,0.00013727,2]
[405941962,1771432243492,-523.76939094,0.00013727,2]
[405941963,1771432243502,-500.0,0.00013727,2]
[405941964,1771432243515,-500.0,0.00013727,2]
[405941965,1771432243524,-161.91543502,0.00013727,2]
[405941966,1771432243534,-159.78130504,0.00013727,2]
[405941967,1771432243543,-576.27008267,0.00013727,2]
[405941968,1771432243553,-160.59858326,0.00013727,2]
[405941969,1771432243563,-500.0,0.00013727,2]
[405941970,1771432243572,-500.0,0.00013727,2]
[405941971,1771432243582,-500.0,0.00013727,2]
[405941972,1771432243593,-500.0,0.00013727,2]
[405941973,1771432243602,-161.89972867,0.00013727,2]
[405941974,1771432243612,-500.0,0.00013727,2]
[405941975,1771432243621,-761.97,0.00013822,2]
[405941976,1771432243633,-600.0,0.0001405,2]
[405941977,1771432243643,-500.0,0.0001405,2]
[405941978,1771432243652,-500.0,0.0001405,2]
[405941979,1771432243661,-500.0,0.0001405,2]
[405941980,1771432243670,-600.0,0.0001405,2]
[405941981,1771432243680,-795.55172821,0.0001405,2]
[405941982,1771432243689,-500.0,0.0001405,2]
[405941983,1771432243699,-500.0,0.0001405,2]
[405941984,1771432243708,-500.0,0.0001405,2]
[405941985,1771432243718,-500.0,0.0001405,2]
[405941986,1771432243727,-600.0,0.0001405,2]
[405941987,1771432243736,-500.0,0.0001405,2]
[405941988,1771432243745,-500.0,0.0001405,2]
[405941989,1771432243755,-600.0,0.0001405,2]
[405941990,1771432243764,-500.0,0.0001405,2]
[405941991,1771432243773,-500.0,0.0001405,2]
[405941992,1771432243783,-600.0,0.0001405,2]
[405941993,1771432243792,-500.0,0.0001405,2]
[405941994,1771432243802,-500.0,0.0001405,2]
[405941995,1771432243811,-600.0,0.0001405,2]
[405941996,1771432243820,-500.0,0.0001405,2]
[405941997,1771432243830,-500.0,0.0001405,2]
[405941998,1771432243839,-600.0,0.0001405,2]
[405941999,1771432243848,-500.0,0.0001405,2]
[405942000,1771432243858,-600.0,0.0001405,2]
[405942001,1771432243868,-500.0,0.0001405,2]
[405942002,1771432243878,-600.0,0.0001405,2]
[405942003,1771432243887,-500.0,0.0001405,2]
[405942004,1771432243897,-600.0,0.0001405,2]
[405942005,1771432243907,-500.0,0.0001405,2]
[405942006,1771432243917,-600.0,0.0001405,2]
[405942007,1771432243927,-500.0,0.0001405,2]
[405942008,1771432243938,-600.0,0.0001405,2]
[405942009,1771432243947,-600.0,0.0001405,2]
[405942010,1771432243957,-600.0,0.0001405,2]
[405942011,1771432243967,-500.0,0.0001405,2]
[405942012,1771432243976,-500.0,0.0001405,2]
[405942013,1771432243986,-761.97,0.00014096,2]
[405942014,1771432243995,-47536.88696193,0.00014124,2]
[405942015,1771432244006,-4126.775759,0.00014142,7]
[405942016,1771432244016,-650.14,0.00014199,2]
[405942017,1771432244027,-1223.27,0.00014199,2]
[405942018,1771432244037,-1000.0,0.00014275,2]
[405942019,1771432244046,-1000.0,0.00014275,2]
[405942020,1771432244056,-1000.0,0.00014275,2]
[405942021,1771432244066,-1003.02217796,0.00014275,2]
[405942022,1771432244075,-1000.0,0.00014275,2]
[405942023,1771432244084,-1000.0,0.00014275,2]
[405942024,1771432244095,-503.21395664,0.00014275,2]
[405942025,1771432244104,-1000.0,0.00014275,2]
[405942026,1771432244114,-1000.0,0.00014275,2]
[405942027,1771432244125,-761.97,0.0001437,2]
[405942028,1771432244135,-1000.0,0.00014531,7]
[405942029,1771432244144,-761.97,0.00014644,2]
[405942030,1771432244153,-500.0,0.00014823,2]
[405942031,1771432244163,-512.08661125,0.00014823,2]
[405942032,1771432244174,-1036.10393399,0.00014823,2]
[405942033,1771432244186,-1500.0,0.00014823,2]
[405942034,1771432244195,-1500.0,0.00014823,2]
[405942035,1771432244204,-762.01554685,0.00014918,2]
[405942036,1771432244215,-250.0,0.00015,2]
[405942037,1771432244224,-900.0,0.00015068,2]
[405942038,1771432244234,-1191.23979414,0.00015371,2]
[405942039,1771432244243,-2000.0,0.00015371,2]
[405942040,1771432244255,-47536.88696193,0.00015382,2]
[405942041,1771432244264,-39986.09378908,0.00015385,2]
[405942042,1771432244274,-483.27611959,0.00015634,2]
[405942043,1771432244283,-2500.0,0.00015919,2]
[405942044,1771432244292,-506.0,0.0001605,2]
[405942045,1771432244302,-379.92,0.00016181,2]
[405942046,1771432244312,-383.91,0.00016314,2]
[405942047,1771432244321,-227.84,0.00016438,2]
[405942048,1771432244332,-900.0,0.00016438,2]
[405942049,1771432244341,-3000.0,0.00016467,2]
[405942050,1771432244351,-2000.0,0.000165,2]
[405942051,1771432244360,-47536.88696193,0.00016639,2]
[405942052,1771432244370,-39986.09378908,0.00016642,2]
[405942053,1771432244380,-167.05,0.00016712,2]
[405942054,1771432244389,-37237.52246235,0.00016763,2]
[405942055,1771432244399,-379.92,0.0001699,2]
[405942056,1771432244409,-20545.37135558,0.00017,2]
[405942057,1771432244418,-300.0,0.00017,2]